fUSD/lending_fUSD_20260621
["ID","MTS","AMOUNT","RATE_DAILY","PERIOD"]
[425887373,1782024675000,-244.72887856,0.00027945,2]
[425887369,1782024675000,-500.0,0.00027945,2]
[425887371,1782024675000,-500.0,0.00027945,2]
[425887367,1782024675000,-500.0,0.00027945,2]
[425887372,1782024675000,-729.31,0.00027945,2]
[425887370,1782024675000,-500.0,0.00027945,2]
[425887384,1782024675000,-500.0,0.00027945,2]
[425887385,1782024675000,-500.0,0.00027945,2]
[425887378,1782024675000,-500.0,0.00027945,2]
[425887389,1782024675000,-500.0,0.00027945,2]
[425887383,1782024675000,-500.0,0.00027945,2]
[425887374,1782024675000,-500.0,0.00027945,2]
[425887368,1782024675000,-435.91887059,0.00027945,2]
[425887366,1782024675000,-591.13,0.00027945,2]
[425887379,1782024675000,-712.59,0.00027945,2]
[425887444,1782024676000,-500.0,0.00027945,2]
[425887438,1782024676000,-500.0,0.00027945,2]
[425887440,1782024676000,-500.0,0.00027945,2]
[425887443,1782024676000,-500.0,0.00027945,2]
[425887441,1782024676000,-500.0,0.00027945,2]
[425887445,1782024676000,-500.0,0.00027945,2]
[425887442,1782024676000,-500.0,0.00027945,2]
[425887448,1782024676000,-354.65671518,0.00027945,2]
[425887451,1782024676000,-500.0,0.00027945,2]
[425887449,1782024676000,-1228.81,0.00027945,2]
[425887450,1782024676000,-340.70358561,0.00027945,2]
[425887446,1782024676000,-500.0,0.00027945,2]
[425887462,1782024676000,-1074.74,0.00027945,2]
[425887452,1782024676000,-500.0,0.00027945,2]
[425887455,1782024676000,-510.08950053,0.00027945,2]
[425887453,1782024676000,-1282.4,0.00027945,2]
[425887457,1782024676000,-554.19,0.00027945,2]
[425887458,1782024676000,-543.22508646,0.00027945,2]
[425887454,1782024676000,-606.45527132,0.00027945,2]
[425887461,1782024676000,-500.0,0.00027945,2]
[425887460,1782024676000,-351.99887679,0.00027945,2]
[425887459,1782024676000,-534.9,0.00027945,2]
[425887456,1782024676000,-500.0,0.00027945,2]
[425887464,1782024676000,-500.0,0.00027945,2]
[425887447,1782024676000,-500.0,0.00027945,2]
[425887435,1782024676000,-500.0,0.00027945,2]
[425887465,1782024676000,-500.0,0.00027945,2]
[425887434,1782024676000,-500.0,0.00027945,2]
[425887412,1782024676000,-500.0,0.00027945,2]
[425887411,1782024676000,-500.0,0.00027945,2]
[425887416,1782024676000,-500.0,0.00027945,2]
[425887410,1782024676000,-500.0,0.00027945,2]
[425887413,1782024676000,-500.0,0.00027945,2]
[425887417,1782024676000,-500.0,0.00027945,2]
[425887414,1782024676000,-500.0,0.00027945,2]
[425887415,1782024676000,-500.0,0.00027945,2]
[425887424,1782024676000,-500.0,0.00027945,2]
[425887418,1782024676000,-500.0,0.00027945,2]
[425887419,1782024676000,-500.0,0.00027945,2]
[425887423,1782024676000,-500.0,0.00027945,2]
[425887427,1782024676000,-604.37957239,0.00027945,2]
[425887422,1782024676000,-500.0,0.00027945,2]
[425887420,1782024676000,-500.9254603,0.00027945,2]
[425887426,1782024676000,-500.0,0.00027945,2]
[425887421,1782024676000,-691.64,0.00027945,2]
[425887425,1782024676000,-500.0,0.00027945,2]
[425887428,1782024676000,-582.2,0.00027945,2]
[425887433,1782024676000,-500.0,0.00027945,2]
[425887429,1782024676000,-830.76,0.00027945,2]
[425887439,1782024676000,-500.0,0.00027945,2]
[425887431,1782024676000,-593.45995497,0.00027945,2]
[425887430,1782024676000,-541.59,0.00027945,2]
[425887436,1782024676000,-500.0,0.00027945,2]
[425887437,1782024676000,-500.0,0.00027945,2]
[425887468,1782024676000,-155.12826108,0.00027945,2]
[425887432,1782024676000,-500.0,0.00027945,2]
[425887471,1782024676000,-196.08546417,0.00027945,2]
[425887500,1782024676000,-609.18810277,0.00027945,2]
[425887499,1782024676000,-500.0,0.00027945,2]
[425887498,1782024676000,-500.0,0.00027945,2]
[425887501,1782024676000,-859.84,0.00027945,2]
[425887497,1782024676000,-876.08,0.00027945,2]
[425887505,1782024676000,-575.75,0.00027945,2]
[425887503,1782024676000,-500.0,0.00027945,2]
[425887504,1782024676000,-500.0,0.00027945,2]
[425887506,1782024676000,-500.0,0.00027945,2]
[425887502,1782024676000,-500.0,0.00027945,2]
[425887507,1782024676000,-500.0,0.00027945,2]
[425887508,1782024676000,-500.0,0.00027945,2]
[425887509,1782024676000,-544.0540002,0.00027945,2]
[425887512,1782024676000,-726.74,0.00027945,2]
[425887519,1782024676000,-500.0,0.00027945,2]
[425887511,1782024676000,-500.0,0.00027945,2]
[425887510,1782024676000,-500.0,0.00027945,2]
[425887514,1782024676000,-500.0,0.00027945,2]
[425887516,1782024676000,-500.0,0.00027945,2]
[425887513,1782024676000,-500.0,0.00027945,2]
[425887517,1782024676000,-984.14,0.00027945,2]
[425887518,1782024676000,-500.0,0.00027945,2]
[425887515,1782024676000,-500.0,0.00027945,2]
[425887520,1782024676000,-500.0,0.00027945,2]
[425887521,1782024676000,-500.0,0.00027945,2]
[425887496,1782024676000,-500.0,0.00027945,2]
[425887495,1782024676000,-500.0,0.00027945,2]
[425887463,1782024676000,-500.0,0.00027945,2]
[425887493,1782024676000,-500.0,0.00027945,2]
[425887492,1782024676000,-500.0,0.00027945,2]
[425887467,1782024676000,-165.47200439,0.00027945,2]
[425887466,1782024676000,-500.0,0.00027945,2]
[425887469,1782024676000,-500.0,0.00027945,2]
[425887470,1782024676000,-500.0,0.00027945,2]
[425887472,1782024676000,-500.0,0.00027945,2]
[425887478,1782024676000,-500.0,0.00027945,2]
[425887477,1782024676000,-500.0,0.00027945,2]
[425887479,1782024676000,-626.03,0.00027945,2]
[425887476,1782024676000,-500.0,0.00027945,2]
[425887473,1782024676000,-500.0,0.00027945,2]
[425887475,1782024676000,-500.0,0.00027945,2]
[425887474,1782024676000,-697.74,0.00027945,2]
[425887481,1782024676000,-567.17,0.00027945,2]
[425887483,1782024676000,-500.0,0.00027945,2]
[425887488,1782024676000,-704.63,0.00027945,2]
[425887491,1782024676000,-500.0,0.00027945,2]
[425887490,1782024676000,-500.0,0.00027945,2]
[425887486,1782024676000,-500.0,0.00027945,2]
[425887494,1782024676000,-527.56,0.00027945,2]
[425887489,1782024676000,-743.19,0.00027945,2]
[425887485,1782024676000,-762.37,0.00027945,2]
[425887484,1782024676000,-524.71,0.00027945,2]
[425887480,1782024676000,-500.0,0.00027945,2]
[425887482,1782024676000,-675.27,0.00027945,2]
[425887487,1782024676000,-500.0,0.00027945,2]
[425887556,1782024677000,-605.56,0.00027945,2]
[425887567,1782024677000,-500.0,0.00027945,2]
[425887559,1782024677000,-500.0,0.00027945,2]
[425887560,1782024677000,-538.09515493,0.00027945,2]
[425887546,1782024677000,-530.00927069,0.00027945,2]
[425887552,1782024677000,-500.0,0.00027945,2]
[425887549,1782024677000,-500.0,0.00027945,2]
[425887553,1782024677000,-500.0,0.00027945,2]
[425887548,1782024677000,-500.0,0.00027945,2]
[425887558,1782024677000,-898.16,0.00027945,2]
[425887557,1782024677000,-500.0,0.00027945,2]
[425887563,1782024677000,-500.0,0.00027945,2]
[425887575,1782024677000,-500.0,0.00027945,2]
[425887561,1782024677000,-500.0,0.00027945,2]
[425887564,1782024677000,-500.0,0.00027945,2]
[425887566,1782024677000,-517.67999129,0.00027945,2]
[425887565,1782024677000,-500.0,0.00027945,2]
[425887568,1782024677000,-500.0,0.00027945,2]
[425887569,1782024677000,-697.05,0.00027945,2]
[425887570,1782024677000,-500.0,0.00027945,2]
[425887572,1782024677000,-884.2,0.00027945,2]
[425887571,1782024677000,-500.0,0.00027945,2]
[425887573,1782024677000,-512.97,0.00027945,2]
[425887574,1782024677000,-500.0,0.00027945,2]
[425887555,1782024677000,-500.0,0.00027945,2]
[425887562,1782024677000,-500.0,0.00027945,2]
[425887550,1782024677000,-500.0,0.00027945,2]
[425887535,1782024677000,-650.02,0.00027945,2]
[425887554,1782024677000,-500.0,0.00027945,2]
[425887576,1782024677000,-500.0,0.00027945,2]
[425887523,1782024677000,-500.0,0.00027945,2]
[425887525,1782024677000,-500.0,0.00027945,2]
[425887522,1782024677000,-1788.46,0.00027945,2]
[425887524,1782024677000,-544.76256334,0.00027945,2]
[425887527,1782024677000,-298.43,0.00027945,2]
[425887526,1782024677000,-500.0,0.00027945,2]
[425887528,1782024677000,-500.0,0.00027945,2]
[425887529,1782024677000,-1276.27,0.00027945,2]
[425887531,1782024677000,-913.08,0.00027945,2]
[425887530,1782024677000,-500.0,0.00027945,2]
[425887533,1782024677000,-914.48,0.00027945,2]
[425887534,1782024677000,-500.0,0.00027945,2]
[425887532,1782024677000,-500.0,0.00027945,2]
[425887540,1782024677000,-1345.31,0.00027945,2]
[425887541,1782024677000,-500.0,0.00027945,2]
[425887542,1782024677000,-3892.29,0.00027945,2]
[425887543,1782024677000,-500.0,0.00027945,2]
[425887536,1782024677000,-695.39,0.00027945,2]
[425887537,1782024677000,-500.0,0.00027945,2]
[425887538,1782024677000,-670.3,0.00027945,2]
[425887539,1782024677000,-649.55,0.00027945,2]
[425887544,1782024677000,-500.0,0.00027945,2]
[425887551,1782024677000,-500.0,0.00027945,2]
[425887547,1782024677000,-647.05102265,0.00027945,2]
[425887545,1782024677000,-500.0,0.00027945,2]
[425887577,1782024677000,-500.0,0.00027945,2]
[425887578,1782024677000,-500.0,0.00027945,2]
[425887631,1782024677000,-6762.29,0.00027945,2]
[425887606,1782024677000,-583.69,0.00027945,2]
[425887610,1782024677000,-794.85,0.00027945,2]
[425887608,1782024677000,-661.33,0.00027945,2]
[425887613,1782024677000,-500.0,0.00027945,2]
[425887615,1782024677000,-500.0,0.00027945,2]
[425887616,1782024677000,-515.89666225,0.00027945,2]
[425887624,1782024677000,-488.21093609,0.00027945,2]
[425887620,1782024677000,-500.0,0.00027945,2]
[425887614,1782024677000,-500.0,0.00027945,2]
[425887617,1782024677000,-500.0,0.00027945,2]
[425887619,1782024677000,-500.0,0.00027945,2]
[425887618,1782024677000,-500.0,0.00027945,2]
[425887607,1782024677000,-500.0,0.00027945,2]
[425887621,1782024677000,-500.0,0.00027945,2]
[425887626,1782024677000,-500.0,0.00027945,2]
[425887625,1782024677000,-500.0,0.00027945,2]
[425887627,1782024677000,-500.0,0.00027945,2]
[425887630,1782024677000,-584.39390235,0.00027945,2]
[425887632,1782024677000,-765.86,0.00027945,2]
[425887635,1782024677000,-500.0,0.00027945,2]
[425887629,1782024677000,-500.0,0.00027945,2]
[425887634,1782024677000,-500.0,0.00027945,2]
[425887633,1782024677000,-500.0,0.00027945,2]
[425887628,1782024677000,-658.55,0.00027945,2]
[425887580,1782024677000,-500.0,0.00027945,2]
[425887636,1782024677000,-712.17,0.00027945,2]
[425887622,1782024677000,-500.0,0.00027945,2]
[425887604,1782024677000,-500.0,0.00027945,2]
[425887623,1782024677000,-500.0,0.00027945,2]
[425887609,1782024677000,-500.0,0.00027945,2]
[425887611,1782024677000,-886.41,0.00027945,2]
[425887583,1782024677000,-500.0,0.00027945,2]
[425887581,1782024677000,-500.0,0.00027945,2]
[425887582,1782024677000,-500.0,0.00027945,2]
[425887586,1782024677000,-500.0,0.00027945,2]
[425887585,1782024677000,-500.0,0.00027945,2]
[425887587,1782024677000,-500.0,0.00027945,2]
[425887584,1782024677000,-516.83,0.00027945,2]
[425887589,1782024677000,-553.12,0.00027945,2]
[425887588,1782024677000,-616.34,0.00027945,2]
[425887591,1782024677000,-500.0,0.00027945,2]
[425887590,1782024677000,-500.0,0.00027945,2]
[425887592,1782024677000,-788.18,0.00027945,2]
[425887579,1782024677000,-500.0,0.00027945,2]
[425887598,1782024677000,-500.0,0.00027945,2]
[425887599,1782024677000,-500.0,0.00027945,2]
[425887612,1782024677000,-515.17702085,0.00027945,2]
[425887601,1782024677000,-612.64,0.00027945,2]
[425887603,1782024677000,-500.0,0.00027945,2]
[425887602,1782024677000,-500.0,0.00027945,2]
[425887597,1782024677000,-504.95,0.00027945,2]
[425887605,1782024677000,-1658.06,0.00027945,2]
[425887600,1782024677000,-500.0,0.00027945,2]
[425887595,1782024677000,-551.15,0.00027945,2]
[425887594,1782024677000,-500.0,0.00027945,2]
[425887593,1782024677000,-500.0,0.00027945,2]
[425887596,1782024677000,-500.0,0.00027945,2]
[425887673,1782024678000,-500.0,0.00027945,2]
[425887670,1782024678000,-610.54,0.00027945,2]
[425887682,1782024678000,-500.0,0.00027945,2]
[425887669,1782024678000,-500.0,0.00027945,2]
[425887681,1782024678000,-656.16,0.00027945,2]
[425887671,1782024678000,-500.0,0.00027945,2]
[425887667,1782024678000,-2404.55,0.00027945,2]
[425887665,1782024678000,-500.0,0.00027945,2]
[425887668,1782024678000,-500.0,0.00027945,2]
[425887678,1782024678000,-500.0,0.00027945,2]
[425887680,1782024678000,-500.0,0.00027945,2]
[425887677,1782024678000,-5681.37,0.00027945,2]
[425887689,1782024678000,-500.0,0.00027945,2]
[425887675,1782024678000,-500.0,0.00027945,2]
[425887676,1782024678000,-500.0,0.00027945,2]
[425887679,1782024678000,-582.5,0.00027945,2]
[425887683,1782024678000,-500.0,0.00027945,2]
[425887684,1782024678000,-500.0,0.00027945,2]
[425887688,1782024678000,-500.0,0.00027945,2]
[425887690,1782024678000,-2135.45,0.00027945,2]
[425887692,1782024678000,-500.0,0.00027945,2]
[425887687,1782024678000,-151.76766203,0.00027945,2]
[425887685,1782024678000,-500.0,0.00027945,2]
[425887693,1782024678000,-501.16,0.00027945,2]
[425887666,1782024678000,-500.0,0.00027945,2]
[425887674,1782024678000,-500.0,0.00027945,2]
[425887661,1782024678000,-2357.13,0.00027945,2]
[425887686,1782024678000,-500.0,0.00027945,2]
[425887664,1782024678000,-500.0,0.00027945,2]
[425887637,1782024678000,-258.69455579,0.00027945,2]
[425887640,1782024678000,-749.43,0.00027945,2]
[425887643,1782024678000,-500.0,0.00027945,2]
[425887638,1782024678000,-500.0,0.00027945,2]
[425887639,1782024678000,-500.0,0.00027945,2]
[425887645,1782024678000,-500.0,0.00027945,2]
[425887646,1782024678000,-500.0,0.00027945,2]
[425887644,1782024678000,-795.37,0.00027945,2]
[425887641,1782024678000,-500.0,0.00027945,2]
[425887642,1782024678000,-500.0,0.00027945,2]
[425887648,1782024678000,-1307.86,0.00027945,2]
[425887658,1782024678000,-500.0,0.00027945,2]
[425887647,1782024678000,-867.45,0.00027945,2]
[425887653,1782024678000,-311.21192565,0.00027945,2]
[425887657,1782024678000,-5137.66,0.00027945,2]
[425887654,1782024678000,-500.0,0.00027945,2]
[425887649,1782024678000,-500.0,0.00027945,2]
[425887652,1782024678000,-500.0,0.00027945,2]
[425887656,1782024678000,-1148.3,0.00027945,2]
[425887650,1782024678000,-500.0,0.00027945,2]
[425887655,1782024678000,-500.0,0.00027945,2]
[425887651,1782024678000,-500.0,0.00027945,2]
[425887659,1782024678000,-500.0,0.00027945,2]
[425887663,1782024678000,-500.0,0.00027945,2]
[425887662,1782024678000,-500.0,0.00027945,2]
[425887660,1782024678000,-500.0,0.00027945,2]
[425887691,1782024678000,-226.47610506,0.00027945,2]
[425887672,1782024678000,-500.0,0.00027945,2]
[425887698,1782024678000,-500.0,0.00027945,2]
[425887724,1782024678000,-622.33,0.00027945,2]
[425887721,1782024678000,-500.0,0.00027945,2]
[425887725,1782024678000,-500.0,0.00027945,2]
[425887727,1782024678000,-3234.89,0.00027945,2]
[425887728,1782024678000,-500.0,0.00027945,2]
[425887726,1782024678000,-500.0,0.00027945,2]
[425887731,1782024678000,-500.0,0.00027945,2]
[425887733,1782024678000,-500.0,0.00027945,2]
[425887732,1782024678000,-669.81,0.00027945,2]
[425887734,1782024678000,-500.0,0.00027945,2]
[425887735,1782024678000,-500.0,0.00027945,2]
[425887741,1782024678000,-500.0,0.00027945,2]
[425887722,1782024678000,-500.0,0.00027945,2]
[425887739,1782024678000,-500.0,0.00027945,2]
[425887736,1782024678000,-500.0,0.00027945,2]
[425887740,1782024678000,-500.0,0.00027945,2]
[425887738,1782024678000,-500.0,0.00027945,2]
[425887743,1782024678000,-603.21825361,0.00027945,2]
[425887742,1782024678000,-691.64,0.00027945,2]
[425887746,1782024678000,-500.0,0.00027945,2]
[425887744,1782024678000,-546.78,0.00027945,2]
[425887747,1782024678000,-500.0,0.00027945,2]
[425887751,1782024678000,-500.0,0.00027945,2]
[425887745,1782024678000,-500.0,0.00027945,2]
[425887748,1782024678000,-500.0,0.00027945,2]
[425887695,1782024678000,-1956.43,0.00027945,2]
[425887737,1782024678000,-5195.03,0.00027945,2]
[425887720,1782024678000,-500.0,0.00027945,2]
[425887750,1782024678000,-500.0,0.00027945,2]
[425887718,1782024678000,-500.0,0.00027945,2]
[425887723,1782024678000,-500.0,0.00027945,2]
[425887694,1782024678000,-500.0,0.00027945,2]
[425887700,1782024678000,-500.0,0.00027945,2]
[425887699,1782024678000,-500.0,0.00027945,2]
[425887702,1782024678000,-847.98,0.00027945,2]
[425887701,1782024678000,-500.0,0.00027945,2]
[425887704,1782024678000,-500.0,0.00027945,2]
[425887703,1782024678000,-636.47,0.00027945,2]
[425887705,1782024678000,-500.0,0.00027945,2]
[425887707,1782024678000,-532.76,0.00027945,2]
[425887708,1782024678000,-533.53,0.00027945,2]
[425887711,1782024678000,-500.0,0.00027945,2]
[425887697,1782024678000,-500.0,0.00027945,2]
[425887713,1782024678000,-886.26,0.00027945,2]
[425887729,1782024678000,-500.0,0.00027945,2]
[425887712,1782024678000,-880.39,0.00027945,2]
[425887730,1782024678000,-500.0,0.00027945,2]
[425887719,1782024678000,-500.0,0.00027945,2]
[425887717,1782024678000,-500.0,0.00027945,2]
[425887714,1782024678000,-500.0,0.00027945,2]
[425887696,1782024678000,-500.0,0.00027945,2]
[425887715,1782024678000,-500.0,0.00027945,2]
[425887706,1782024678000,-500.56,0.00027945,2]
[425887749,1782024678000,-500.0,0.00027945,2]
[425887710,1782024678000,-500.0,0.00027945,2]
[425887716,1782024678000,-622.76,0.00027945,2]
[425887709,1782024678000,-500.0,0.00027945,2]
[425887777,1782024679000,-951.86,0.00027945,2]
[425887779,1782024679000,-500.0,0.00027945,2]
[425887782,1782024679000,-559.44,0.00027945,2]
[425887784,1782024679000,-500.0,0.00027945,2]
[425887781,1782024679000,-500.0,0.00027945,2]
[425887780,1782024679000,-551.99,0.00027945,2]
[425887783,1782024679000,-797.65,0.00027945,2]
[425887785,1782024679000,-500.0,0.00027945,2]
[425887786,1782024679000,-500.0,0.00027945,2]
[425887788,1782024679000,-500.0,0.00027945,2]
[425887789,1782024679000,-500.0,0.00027945,2]
[425887794,1782024679000,-2244.17,0.00027945,2]
[425887787,1782024679000,-631.3,0.00027945,2]
[425887797,1782024679000,-500.0,0.00027945,2]
[425887793,1782024679000,-500.0,0.00027945,2]
[425887795,1782024679000,-607.73,0.00027945,2]
[425887792,1782024679000,-597.51,0.00027945,2]
[425887798,1782024679000,-500.0,0.00027945,2]
[425887796,1782024679000,-500.0,0.00027945,2]
[425887778,1782024679000,-500.0,0.00027945,2]
[425887800,1782024679000,-801.08,0.00027945,2]
[425887791,1782024679000,-500.0,0.00027945,2]
[425887790,1782024679000,-500.0,0.00027945,2]
[425887762,1782024679000,-500.0,0.00027945,2]
[425887773,1782024679000,-500.0,0.00027945,2]
[425887799,1782024679000,-500.0,0.00027945,2]
[425887752,1782024679000,-680.65,0.00027945,2]
[425887754,1782024679000,-500.0,0.00027945,2]
[425887753,1782024679000,-700.2,0.00027945,2]
[425887756,1782024679000,-500.0,0.00027945,2]
[425887758,1782024679000,-1599.41,0.00027945,2]
[425887757,1782024679000,-500.0,0.00027945,2]
[425887755,1782024679000,-500.0,0.00027945,2]
[425887761,1782024679000,-1309.86,0.00027945,2]
[425887759,1782024679000,-500.0,0.00027945,2]
[425887772,1782024679000,-500.0,0.00027945,2]
[425887763,1782024679000,-772.18,0.00027945,2]
[425887765,1782024679000,-500.0,0.00027945,2]
[425887775,1782024679000,-500.0,0.00027945,2]
[425887767,1782024679000,-2642.89,0.00027945,2]
[425887776,1782024679000,-500.0,0.00027945,2]
[425887766,1782024679000,-500.0,0.00027945,2]
[425887768,1782024679000,-500.0,0.00027945,2]
[425887764,1782024679000,-765.84,0.00027945,2]
[425887769,1782024679000,-500.0,0.00027945,2]
[425887771,1782024679000,-500.0,0.00027945,2]
[425887770,1782024679000,-500.0,0.00027945,2]
[425887760,1782024679000,-500.0,0.00027945,2]
[425887801,1782024679000,-500.0,0.00027945,2]
[425887774,1782024679000,-500.0,0.00027945,2]
[425887806,1782024679000,-500.0,0.00027945,2]
[425887831,1782024679000,-407.34554179,0.00027945,2]
[425887833,1782024679000,-500.0,0.00027945,2]
[425887832,1782024679000,-92.65445821,0.00027945,2]
[425887834,1782024679000,-500.0,0.00027945,2]
[425887836,1782024679000,-795.46142488,0.00027945,2]
[425887830,1782024679000,-14.41737534,0.00027945,2]
[425887835,1782024679000,-140.29857512,0.00027945,2]
[425887838,1782024679000,-514.3843701,0.00027945,2]
[425887841,1782024679000,-500.0,0.00027945,2]
[425887845,1782024679000,-500.0,0.00027945,2]
[425887837,1782024679000,-500.0,0.00027945,2]
[425887839,1782024679000,-500.0,0.00027945,2]
[425887846,1782024679000,-500.0,0.00027945,2]
[425887840,1782024679000,-500.0,0.00027945,2]
[425887847,1782024679000,-500.0,0.00027945,2]
[425887843,1782024679000,-793.1,0.00027945,2]
[425887844,1782024679000,-500.0,0.00027945,2]
[425887848,1782024679000,-764.69,0.00027945,2]
[425887851,1782024679000,-396.62228933,0.00027945,2]
[425887850,1782024679000,-750.17,0.00027945,2]
[425887849,1782024679000,-500.0,0.00027945,2]
[425887827,1782024679000,-17.16085843,0.00027945,2]
[425887829,1782024679000,-485.58262466,0.00027945,2]
[425887842,1782024679000,-500.0,0.00027945,2]
[425887825,1782024679000,-500.0,0.00027945,2]
[425887828,1782024679000,-566.74,0.00027945,2]
[425887807,1782024679000,-903.03,0.00027945,2]
[425887805,1782024679000,-1000.0,0.00027945,2]
[425887804,1782024679000,-500.0,0.00027945,2]
[425887808,1782024679000,-500.0,0.00027945,2]
[425887809,1782024679000,-500.0,0.00027945,2]
[425887802,1782024679000,-500.0,0.00027945,2]
[425887810,1782024679000,-4062.39,0.00027945,2]
[425887814,1782024679000,-603.48,0.00027945,2]
[425887819,1782024679000,-500.0,0.00027945,2]
[425887813,1782024679000,-904.48,0.00027945,2]
[425887803,1782024679000,-500.0,0.00027945,2]
[425887811,1782024679000,-954.13,0.00027945,2]
[425887826,1782024679000,-482.83914157,0.00027945,2]
[425887817,1782024679000,-518.40374912,0.00027945,2]
[425887824,1782024679000,-1143.03,0.00027945,2]
[425887822,1782024679000,-834.25,0.00027945,2]
[425887812,1782024679000,-500.0,0.00027945,2]
[425887823,1782024679000,-500.0,0.00027945,2]
[425887818,1782024679000,-624.26,0.00027945,2]
[425887815,1782024679000,-204.04145397,0.00027945,2]
[425887821,1782024679000,-555.21,0.00027945,2]
[425887816,1782024679000,-500.0,0.00027945,2]
[425887820,1782024679000,-809.55,0.00027945,2]
[425887867,1782024680000,-500.0,0.00027945,2]
[425887872,1782024680000,-500.0,0.00027945,2]
[425887864,1782024680000,-896.34,0.00027945,2]
[425887868,1782024680000,-6091.07,0.00027945,2]
[425887873,1782024680000,-500.0,0.00027945,2]
[425887887,1782024680000,-500.0,0.00027945,2]
[425887875,1782024680000,-585.48,0.00027945,2]
[425887877,1782024680000,-500.0,0.00027945,2]
[425887866,1782024680000,-500.0,0.00027945,2]
[425887878,1782024680000,-177.21327122,0.00027945,2]
[425887879,1782024680000,-500.0,0.00027945,2]
[425887874,1782024680000,-500.0,0.00027945,2]
[425887870,1782024680000,-500.0,0.00027945,2]
[425887863,1782024680000,-500.0,0.00027945,2]
[425887869,1782024680000,-7914.34,0.00027945,2]
[425887865,1782024680000,-500.0,0.00027945,2]
[425887862,1782024680000,-817.63,0.00027945,2]
[425887860,1782024680000,-541.97361361,0.00027945,2]
[425887853,1782024680000,-512.0,0.00027137,2]
[425887858,1782024680000,-500.0,0.00027945,2]
[425887859,1782024680000,-500.0,0.00027945,2]
[425887854,1782024680000,-103.37771067,0.00027945,2]
[425887857,1782024680000,-701.53,0.00027945,2]
[425887855,1782024680000,-500.0,0.00027945,2]
[425887861,1782024680000,-500.0,0.00027945,2]
[425887852,1782024680000,-215.0,0.00024976,2]
[425887888,1782024680000,-1561.52,0.00027945,2]
[425887871,1782024680000,-3320.81,0.00027945,2]
[425887856,1782024680000,-564.37,0.00027945,2]
[425887880,1782024680000,-500.0,0.00027945,2]
[425887882,1782024680000,-1092.23,0.00027945,2]
[425887876,1782024680000,-924.41,0.00027945,2]
[425887910,1782024680000,-500.0,0.00027945,2]
[425887909,1782024680000,-500.0,0.00027945,2]
[425887905,1782024680000,-500.0,0.00027945,2]
[425887908,1782024680000,-500.0,0.00027945,2]
[425887907,1782024680000,-500.0,0.00027945,2]
[425887904,1782024680000,-500.0,0.00027945,2]
[425887902,1782024680000,-500.0,0.00027945,2]
[425887903,1782024680000,-500.0,0.00027945,2]
[425887911,1782024680000,-500.0,0.00027945,2]
[425887900,1782024680000,-784.42,0.00027945,2]
[425887897,1782024680000,-500.0,0.00027945,2]